fUST/lending_fUST_20250130
["ID","MTS","AMOUNT","RATE_DAILY","PERIOD"]
[350883905,1738173033287,-1057.5,0.00016438,2]
[350883906,1738173033297,-500.0,0.00016438,2]
[350883907,1738173033307,-500.0,0.00016438,2]
[350883908,1738173033316,-239.33029129,0.00016438,2]
[350883909,1738173033326,-500.0,0.00016438,2]
[350883910,1738173033336,-500.0,0.00016438,2]
[350883911,1738173033346,-500.0,0.00016438,2]
[350883912,1738173033355,-500.0,0.00016438,2]
[350883913,1738173033365,-624.76,0.00016438,2]
[350883914,1738173033375,-644.34,0.00016438,2]
[350883915,1738173033384,-500.0,0.00016438,2]
[350883916,1738173033394,-500.0,0.00016438,2]
[350883917,1738173033403,-500.0,0.00016438,2]
[350883918,1738173033413,-500.0,0.00016438,2]
[350883919,1738173033422,-500.0,0.00016438,2]
[350883920,1738173033432,-500.0,0.00016438,2]
[350883921,1738173033441,-500.0,0.00016438,2]
[350883922,1738173033451,-500.0,0.00016438,2]
[350883923,1738173033461,-211.31477314,0.00016438,2]
[350883924,1738173033488,-288.68522686,0.00016438,2]
[350883925,1738173033498,-500.0,0.00016438,2]
[350883926,1738173033507,-177.54685586,0.00016438,2]
[350883927,1738173033518,-500.0,0.00016438,2]
[350883928,1738173033527,-500.0,0.00016438,2]
[350883929,1738173033537,-500.0,0.00016438,2]
[350883930,1738173033546,-537.35,0.00016438,2]
[350883931,1738173033556,-500.0,0.00016438,2]
[350883932,1738173033566,-500.0,0.00016438,2]
[350883933,1738173033576,-151.0,0.00016438,2]
[350883934,1738173033585,-151.0,0.00016438,2]
[350883935,1738173033595,-151.0,0.00016438,2]
[350883936,1738173033606,-544.43956736,0.00016438,2]
[350883937,1738173033615,-500.0,0.00016438,2]
[350883938,1738173033625,-951.05,0.00016438,2]
[350883939,1738173033635,-500.0,0.00016438,2]
[350883940,1738173033644,-500.0,0.00016438,2]
[350883941,1738173033654,-500.0,0.00016438,2]
[350883942,1738173033663,-245.587872,0.00016438,2]
[350883943,1738173033673,-245.587872,0.00016438,2]
[350883944,1738173033683,-245.587872,0.00016438,2]
[350883945,1738173033693,-245.587872,0.00016438,2]
[350883946,1738173033703,-245.587872,0.00016438,2]
[350883947,1738173033714,-245.587872,0.00016438,2]
[350883948,1738173033725,-536.74645116,0.00016438,2]
[350883949,1738173033735,-245.587872,0.00016438,2]
[350883950,1738173033745,-245.587872,0.00016438,2]
[350883951,1738173033754,-245.587872,0.00016438,2]
[350883952,1738173033765,-245.587872,0.00016438,2]
[350883953,1738173033775,-500.0,0.00016438,2]
[350883954,1738173033784,-500.0,0.00016438,2]
[350883955,1738173033795,-151.0,0.00016438,2]
[350883956,1738173033805,-151.0,0.00016438,2]
[350883957,1738173033814,-151.0,0.00016438,2]
[350883958,1738173033824,-151.0,0.00016438,2]
[350883959,1738173033834,-151.0,0.00016438,2]
[350883960,1738173033843,-500.0,0.00016438,2]
[350883961,1738173033852,-500.0,0.00016438,2]
[350883962,1738173033862,-151.0,0.00016438,2]
[350883963,1738173033871,-500.0,0.00016438,2]
[350883964,1738173033880,-500.0,0.00016438,2]
[350883965,1738173033890,-2188.71,0.00016438,2]
[350883966,1738173033900,-500.0,0.00016438,2]
[350883967,1738173033909,-500.0,0.00016438,2]
[350883968,1738173033920,-151.0,0.00016438,2]
[350883969,1738173033929,-151.0,0.00016438,2]
[350883970,1738173033938,-500.0,0.00016438,2]
[350883971,1738173033947,-151.0,0.00016438,2]
[350883972,1738173033956,-274.166343,0.00016438,2]
[350883973,1738173033966,-500.0,0.00016438,2]
[350883974,1738173033976,-500.0,0.00016438,2]
[350883975,1738173033986,-1141.83,0.00016438,2]
[350883976,1738173033996,-500.0,0.00016438,2]
[350883977,1738173034005,-3034.14,0.00016438,2]
[350883978,1738173034015,-504.55395256,0.00016438,2]
[350883979,1738173034025,-500.0,0.00016438,2]
[350883980,1738173034035,-500.0,0.00016438,2]
[350883981,1738173034044,-3232.78461177,0.00016438,2]
[350884014,1738173038037,-2155.04538823,0.00016438,2]
[350884016,1738173038047,-518.29123251,0.00016438,2]
[350889612,1738173159542,6000.0,0.00015,7]
[350890358,1738173420720,197.697624,0.00013973,2]
[350890695,1738174232519,-500.0,0.00015664,2]
[350890697,1738174232529,-1144.05996078,0.00016,2]
[350890699,1738174232538,-3519.10197919,0.00016212,2]
[350890777,1738174238283,-791.88618055,0.00016212,2]
[350890778,1738174238296,-637.91685716,0.00016212,2]
[350890779,1738174238307,-5459.25891732,0.00016212,2]
[350890780,1738174238317,-575.61277151,0.00016338,2]
[350890781,1738174238327,-151.0,0.00016437,2]
[350890782,1738174238338,-203.37172996,0.00016437,2]
[350890783,1738174238348,-500.0,0.00016437,2]
[350890784,1738174238358,-500.0,0.00016437,2]
[350890785,1738174238367,-184.29773378,0.00016437,2]
[350890786,1738174238377,-500.0,0.00016437,2]
[350890787,1738174238386,-500.0,0.00016437,2]
[350890788,1738174238395,-500.0,0.00016437,2]
[350890789,1738174238406,-500.0,0.00016437,2]
[350890790,1738174238415,-596.82031826,0.00016437,2]
[350890791,1738174238426,-500.0,0.00016437,2]
[350890792,1738174238436,-618.89095612,0.00016437,2]
[350890793,1738174238448,-500.0,0.00016437,2]
[350890794,1738174238457,-150.0,0.00016438,2]
[350890796,1738174238467,-395.0,0.00016438,2]
[350890798,1738174238478,-500.0,0.00016438,2]
[350890800,1738174238487,-152.36687066,0.00016438,2]
[350890802,1738174238496,-500.0,0.00016438,2]
[350890804,1738174238506,-177.8681927,0.00016438,2]
[350890805,1738174238518,-322.1318073,0.00016438,2]
[350890806,1738174238530,-500.0,0.00016438,2]
[350890807,1738174238540,-500.0,0.00016438,2]
[350890808,1738174238550,-500.0,0.00016438,2]
[350890809,1738174238559,-500.0,0.00016438,2]
[350890810,1738174238569,-500.0,0.00016438,2]
[350890811,1738174238578,-500.0,0.00016438,2]
[350890812,1738174238589,-500.0,0.00016438,2]
[350890813,1738174238599,-590.48146899,0.00016438,2]
[350890814,1738174238608,-500.0,0.00016438,2]
[350890815,1738174238617,-500.0,0.00016438,2]
[350890816,1738174238627,-500.0,0.00016438,2]
[350890817,1738174238636,-500.0,0.00016438,2]
[350890818,1738174238645,-108.18658857,0.00016438,2]
[350890819,1738174238658,-41.81444346,0.00016438,2]
[350890820,1738174238667,-363.4538601,0.00016438,2]
[350890821,1738174238678,-136.5461399,0.00016438,2]
[350890822,1738174238688,-115.60625818,0.00016438,2]
[350890823,1738174238699,-384.39374182,0.00016438,2]
[350890824,1738174238709,-125.37125818,0.00016438,2]
[350890825,1738174238720,-374.62874182,0.00016438,2]
[350890826,1738174238733,-500.0,0.00016438,2]
[350890827,1738174238743,-500.0,0.00016438,2]
[350890828,1738174238753,-500.0,0.00016438,2]
[350890829,1738174238762,-500.0,0.00016438,2]
[350890830,1738174238772,-500.0,0.00016438,2]
[350890831,1738174238781,-348.26007941,0.00016438,2]
[350890832,1738174238790,-500.0,0.00016438,2]
[350890833,1738174238799,-500.0,0.00016438,2]
[350890834,1738174238809,-500.0,0.00016438,2]
[350890835,1738174238818,-500.0,0.00016438,2]
[350890836,1738174238827,-427.97563308,0.00016438,2]
[350890837,1738174238837,-617.49,0.00016438,2]
[350890838,1738174238846,-500.0,0.00016438,2]
[350890839,1738174238856,-500.0,0.00016438,2]
[350890840,1738174238865,-520.91713838,0.00016438,2]
[350890841,1738174238874,-500.0,0.00016438,2]
[350890842,1738174238884,-500.0,0.00016438,2]
[350890843,1738174238894,-500.0,0.00016438,2]
[350890844,1738174238903,-500.0,0.00016438,2]
[350890845,1738174238913,-500.0,0.00016438,2]
[350890846,1738174238922,-500.0,0.00016438,2]
[350890847,1738174238931,-611.53006297,0.00016438,2]
[350890848,1738174238941,-500.0,0.00016438,2]
[350890849,1738174238950,-500.0,0.00016438,2]
[350890850,1738174238959,-504.67454969,0.00016438,2]
[350890851,1738174238969,-501.56075748,0.00016438,2]
[350890852,1738174238983,-500.0,0.00016438,2]
[350890853,1738174238992,-619.56,0.00016438,2]
[350890854,1738174239001,-502.35503951,0.00016438,2]
[350890855,1738174239010,-500.0,0.00016438,2]
[350890856,1738174239019,-500.0,0.00016438,2]
[350890857,1738174239029,-500.0,0.00016438,2]
[350890858,1738174239038,-500.0,0.00016438,2]
[350890859,1738174239047,-500.0,0.00016438,2]
[350890860,1738174239056,-500.0,0.00016438,2]
[350890861,1738174239065,-500.0,0.00016438,2]
[350890862,1738174239077,-501.40668572,0.00016438,2]
[350890863,1738174239090,-500.0,0.00016438,2]
[350890864,1738174239105,-500.0,0.00016438,2]
[350890865,1738174239119,-500.0,0.00016438,2]
[350890866,1738174239131,-500.0,0.00016438,2]
[350890867,1738174239143,-500.0,0.00016438,2]
[350890868,1738174239155,-500.0,0.00016438,2]
[350890869,1738174239167,-502.10760146,0.00016438,2]
[350890870,1738174239178,-253.34170156,0.00016438,2]
[350890871,1738174239191,-501.63561331,0.00016438,2]
[350890872,1738174239203,-500.0,0.00016438,2]
[350890873,1738174239215,-476.00108259,0.00016438,2]
[350890874,1738174239229,-503.4158796,0.00016438,2]
[350890875,1738174239241,-500.0,0.00016438,2]
[350890876,1738174239253,-500.0,0.00016438,2]
[350890877,1738174239266,-497.31558103,0.00016438,2]
[350890878,1738174239278,-500.0,0.00016438,2]
[350890879,1738174239289,-178.96968338,0.00016438,2]
[350890880,1738174239305,-321.03031662,0.00016438,2]
[350890881,1738174239316,-500.0,0.00016438,2]
[350890882,1738174239327,-401.64962618,0.00016438,2]
[350890883,1738174239340,-911.43,0.00016438,2]
[350890884,1738174239353,-500.0,0.00016438,2]
[350890885,1738174239364,-502.60071862,0.00016438,2]
[350890886,1738174239376,-103.28933858,0.00016438,2]
[350890909,1738174243747,-396.71066142,0.00016438,2]
[350890910,1738174243919,-502.45447302,0.00016438,2]
[350890911,1738174243929,-500.0,0.00016438,2]
[350890912,1738174243939,-504.62350735,0.00016438,2]
[350890914,1738174243948,-500.0,0.00016438,2]
[350890916,1738174243957,-500.0,0.00016438,2]
[350890918,1738174243966,-242.61135821,0.00016438,2]
[350890949,1738174346058,187.812742,0.00013973,2]
[350890975,1738175259957,178.422109,0.00013973,2]
[350891025,1738175432541,-500.0,0.00015664,2]
[350891027,1738175432551,-503.66117508,0.00016338,2]
[350891029,1738175432561,-166.3837524,0.00016338,2]
[350891031,1738175432571,-300.0,0.00016339,2]
[350891033,1738175432582,-7427.88285783,0.0001634,2]
[350891036,1738175432593,-337.36898879,0.0001634,2]
[350891038,1738175432605,-1513.65514694,0.0001634,2]
[350891040,1738175432614,-500.0,0.00016437,2]
[350891042,1738175432623,-500.0,0.00016437,2]
[350891044,1738175432632,-500.0,0.00016437,2]
[350891046,1738175432642,-336.37936965,0.00016437,2]
[350891048,1738175432651,-500.0,0.00016437,2]
[350891049,1738175432660,-500.0,0.00016437,2]
[350891051,1738175432669,-500.0,0.00016437,2]
[350891053,1738175432678,-500.0,0.00016437,2]
[350891055,1738175432688,-500.0,0.00016437,2]
[350891057,1738175432697,-500.0,0.00016437,2]
[350891059,1738175432706,-500.0,0.00016437,2]
[350891061,1738175432715,-474.21797449,0.00016437,2]
[350891063,1738175432725,-500.0,0.00016437,2]
[350891065,1738175432734,-224.29263459,0.00016437,2]
[350891068,1738175432743,-215.9637734,0.00016437,2]
[350891071,1738175432753,-500.0,0.00016437,2]
[350891074,1738175432762,-500.0,0.00016438,2]
[350891077,1738175432771,-258.72303876,0.00016438,2]
[350891081,1738175432785,-500.0,0.00016438,2]
[350891084,1738175432795,-500.0,0.00016438,2]
[350891086,1738175432804,-500.0,0.00016438,2]
[350891088,1738175432813,-500.0,0.00016438,2]
[350891090,1738175432822,-499.62033568,0.00016438,2]
[350891092,1738175432833,-360.9852085,0.00016438,2]
[350891614,1738175438548,-139.0147915,0.00016438,2]
[350891616,1738175438558,-500.0,0.00016438,2]
[350891618,1738175438568,-500.0,0.00016438,2]
[350891619,1738175438577,-500.0,0.00016438,2]
[350891620,1738175438587,-190.35553604,0.00016438,2]
[350891621,1738175438596,-255.87414393,0.00016438,2]
[350891622,1738175438605,-500.0,0.00016438,2]
[350891624,1738175438615,-500.0,0.00016438,2]
[350891626,1738175438624,-505.62343607,0.00016438,2]
[350891627,1738175438633,-504.55952352,0.00016438,2]
[350891628,1738175438643,-502.61997729,0.00016438,2]
[350891629,1738175438652,-412.55269623,0.00016438,2]
[350891630,1738175438662,-502.13516775,0.00016438,2]
[350891631,1738175438671,-500.0,0.00016438,2]
[350891632,1738175438680,-500.0,0.00016438,2]
[350891633,1738175438689,-500.0,0.00016438,2]
[350891634,1738175438699,-500.0,0.00016438,2]
[350891635,1738175438708,-500.0,0.00016438,2]
[350891636,1738175438718,-500.0,0.00016438,2]
[350891637,1738175438727,-521.69,0.00016438,2]
[350891638,1738175438736,-506.86884258,0.00016438,2]
[350891639,1738175438746,-500.0,0.00016438,2]
[350891640,1738175438756,-500.0,0.00016438,2]
[350891641,1738175438765,-500.0,0.00016438,2]
[350891642,1738175438774,-502.61301712,0.00016438,2]
[350891643,1738175438784,-500.0,0.00016438,2]
[350891644,1738175438793,-500.0,0.00016438,2]
[350891645,1738175438804,-481.63755624,0.00016438,2]
[350891657,1738175438981,-18.36244376,0.00016438,2]
[350891659,1738175438992,-500.0,0.00016438,2]
[350891661,1738175439001,-503.55094054,0.00016438,2]
[350891663,1738175439011,-500.0,0.00016438,2]
[350891665,1738175439020,-500.0,0.00016438,2]
[350891666,1738175439031,-182.40436957,0.00016438,2]
[350891667,1738175439040,-272.71734715,0.00016438,2]
[350891668,1738175439050,-500.0,0.00016438,2]
[350891669,1738175439059,-500.0,0.00016438,2]
[350891670,1738175439069,-354.88233004,0.00016438,2]
[350891735,1738176321780,169.501003,0.00013973,2]
[350891756,1738176632790,-3454.85046554,0.00015564,2]
[350891758,1738176632800,-300.0,0.00015663,2]
[350891760,1738176632810,-500.0,0.00015664,2]
[350891762,1738176632820,-23452.44066789,0.00015664,2]
[350891764,1738176632829,-400.000001,0.00016,2]
[350891766,1738176632839,-152.0,0.00016054,5]
[350891768,1738176632849,-604.41179212,0.00016338,2]
[350891770,1738176632858,-437.39388776,0.00016338,2]
[350891772,1738176632868,-844.52443533,0.000164,2]
[350891774,1738176632877,-283.93967085,0.00016437,2]
[350891776,1738176632892,-500.0,0.00016437,2]
[350891778,1738176632901,-175.8013764,0.00016437,2]
[350891780,1738176632911,-500.0,0.00016437,2]
[350891782,1738176632921,-500.0,0.00016437,2]
[350891784,1738176632930,-500.0,0.00016437,2]
[350891786,1738176632940,-215.9637734,0.00016437,2]
[350891788,1738176632950,-500.0,0.00016437,2]
[350891790,1738176632960,-220.77644144,0.00016437,2]
[350891792,1738176632971,-500.0,0.00016437,2]
[350891794,1738176632981,-500.0,0.00016437,2]
[350891796,1738176632991,-273.33337325,0.00016437,2]
[350891798,1738176633001,-482.76694128,0.00016437,2]
[350891800,1738176633011,-500.0,0.00016437,2]
[350891802,1738176633020,-500.0,0.00016437,2]
[350891803,1738176633030,-477.3905884,0.00016437,2]
[350891804,1738176633042,-500.0,0.00016437,2]
[350891805,1738176633053,-500.0,0.00016437,2]
[350891806,1738176633063,-500.0,0.00016437,2]
[350891807,1738176633073,-389.41193326,0.00016437,2]
[350891808,1738176633083,-500.0,0.00016437,2]
[350891809,1738176633093,-177.05222331,0.00016437,2]
[350891810,1738176633103,-334.58293153,0.00016438,2]
[350891811,1738176633113,-500.0,0.00016438,2]
[350891812,1738176633123,-501.96457112,0.00016438,2]
[350891813,1738176633134,-500.0,0.00016438,2]
[350891814,1738176633144,-500.0,0.00016438,2]
[350891815,1738176633154,-501.04227712,0.00016438,2]
[350891816,1738176633164,-500.0,0.00016438,2]
[350891817,1738176633174,-500.95547222,0.00016438,2]
[350891818,1738176633184,-500.0,0.00016438,2]
[350891819,1738176633194,-500.0,0.00016438,2]
[350891820,1738176633204,-500.0,0.00016438,2]
[350891821,1738176633213,-500.0,0.00016438,2]
[350891822,1738176633223,-500.0,0.00016438,2]
[350891823,1738176633233,-500.0,0.00016438,2]
[350891824,1738176633243,-500.0,0.00016438,2]
[350891825,1738176633252,-500.0,0.00016438,2]
[350891826,1738176633262,-500.0,0.00016438,2]
[350891827,1738176633272,-500.0,0.00016438,2]
[350891828,1738176633281,-500.0,0.00016438,2]
[350891829,1738176633296,-415.22673669,0.00016438,2]
[350891830,1738176633306,-500.0,0.00016438,2]
[350891831,1738176633317,-500.0,0.00016438,2]
[350891832,1738176633327,-500.0,0.00016438,2]
[350891833,1738176633338,-500.0,0.00016438,2]
[350891834,1738176633348,-500.0,0.00016438,2]
[350891835,1738176633358,-500.0,0.00016438,2]
[350891836,1738176633369,-500.0,0.00016438,2]
[350891837,1738176633379,-612.6,0.00016438,2]
[350891838,1738176633390,-500.0,0.00016438,2]
[350891839,1738176633399,-500.0,0.00016438,2]
[350891840,1738176633409,-500.0,0.00016438,2]
[350891841,1738176633420,-500.0,0.00016438,2]
[350891842,1738176633430,-500.0,0.00016438,2]
[350891843,1738176633441,-500.0,0.00016438,2]
[350891844,1738176633452,-500.0,0.00016438,2]
[350891845,1738176633462,-363.63556264,0.00016438,2]
[350891846,1738176633472,-500.0,0.00016438,2]
[350891847,1738176633627,-500.0,0.00016438,2]
[350891848,1738176633639,-500.0,0.00016438,2]
[350891849,1738176633650,-500.0,0.00016438,2]
[350891850,1738176633660,-500.0,0.00016438,2]
[350891851,1738176633670,-500.0,0.00016438,2]
[350891852,1738176633680,-500.0,0.00016438,2]
[350891853,1738176633690,-500.0,0.00016438,2]
[350891854,1738176633700,-500.0,0.00016438,2]
[350891855,1738176633710,-500.0,0.00016438,2]
[350891856,1738176633720,-500.0,0.00016438,2]
[350891857,1738176633730,-782.49,0.00016438,2]
[350891858,1738176633740,-500.0,0.00016438,2]
[350891859,1738176633751,-635.41,0.00016438,2]
[350891860,1738176633760,-500.0,0.00016438,2]
[350891861,1738176633770,-500.0,0.00016438,2]
[350891862,1738176633780,-221.35296952,0.00016438,2]
[350891863,1738176633792,-151.0,0.00016438,2]
[350891864,1738176633802,-500.0,0.00016438,2]
[350891865,1738176633812,-500.0,0.00016438,2]
[350891866,1738176633822,-500.0,0.00016438,2]
[350891867,1738176633831,-500.0,0.00016438,2]
[350891868,1738176633841,-500.0,0.00016438,2]
[350891869,1738176633852,-500.0,0.00016438,2]
[350891870,1738176633862,-500.0,0.00016438,2]
[350891871,1738176633872,-500.0,0.00016438,2]
[350891872,1738176633882,-500.0,0.00016438,2]
[350891873,1738176633894,-321.46986938,0.00016438,2]
[350891874,1738176633904,-500.0,0.00016438,2]
[350891875,1738176633914,-500.0,0.00016438,2]
[350891876,1738176633923,-500.0,0.00016438,2]
[350891877,1738176633937,-500.0,0.00016438,2]
[350891878,1738176633948,-500.0,0.00016438,2]
[350891879,1738176633957,-500.0,0.00016438,2]
[350891880,1738176633968,-500.0,0.00016438,2]
[350891881,1738176633978,-500.0,0.00016438,2]
[350891882,1738176633988,-500.0,0.00016438,2]
[350891883,1738176633997,-500.0,0.00016438,2]
[350891884,1738176634007,-500.0,0.00016438,2]
[350891885,1738176634016,-500.0,0.00016438,2]
[350891886,1738176634026,-500.0,0.00016438,2]
[350891887,1738176634037,-500.0,0.00016438,2]
[350891888,1738176634047,-500.0,0.00016438,2]
[350891889,1738176634057,-500.0,0.00016438,2]
[350891890,1738176634067,-501.62291379,0.00016438,2]
[350891891,1738176634077,-556.63,0.00016438,2]
[350891892,1738176634087,-500.0,0.00016438,2]
[350891893,1738176634097,-500.0,0.00016438,2]
[350891894,1738176634106,-500.0,0.00016438,2]
[350891895,1738176634116,-500.0,0.00016438,2]
[350891896,1738176634125,-500.0,0.00016438,2]
[350891897,1738176634135,-1308.12,0.00016438,2]
[350891898,1738176634145,-500.0,0.00016438,2]
[350891899,1738176634156,-500.0,0.00016438,2]
[350891900,1738176634166,-500.0,0.00016438,2]
[350891901,1738176634175,-500.0,0.00016438,2]
[350891902,1738176634186,-500.0,0.00016438,2]
[350891903,1738176634195,-500.0,0.00016438,2]
[350891904,1738176634205,-500.0,0.00016438,2]
[350891905,1738176634215,-500.0,0.00016438,2]
[350891906,1738176634225,-500.0,0.00016438,2]
[350891907,1738176634235,-500.0,0.00016438,2]
[350891908,1738176634244,-500.0,0.00016438,2]
[350891909,1738176634254,-500.0,0.00016438,2]
[350891910,1738176634263,-500.0,0.00016438,2]
[350891911,1738176634273,-500.0,0.00016438,2]
[350891912,1738176634283,-630.06158567,0.00016438,2]
[350891913,1738176634294,-503.34315716,0.00016438,2]
[350891914,1738176634304,-500.0,0.00016438,2]
[350891915,1738176634313,-500.0,0.00016438,2]
[350891916,1738176634323,-500.0,0.00016438,2]
[350891917,1738176634336,-1752.19,0.00016438,2]
[350891918,1738176634346,-500.0,0.00016438,2]
[350891919,1738176634356,-500.0,0.00016438,2]
[350891920,1738176634366,-505.08555756,0.00016438,2]
[350891921,1738176634376,-500.0,0.00016438,2]
[350891922,1738176634385,-471.19969773,0.00016438,2]
[350891923,1738176634395,-500.0,0.00016438,2]
[350891924,1738176634405,-500.0,0.00016438,2]
[350891925,1738176634415,-505.6014656,0.00016438,2]
[350891926,1738176634424,-500.0,0.00016438,2]
[350891927,1738176634434,-500.0,0.00016438,2]
[350891928,1738176634444,-151.0,0.00016438,2]
[350891929,1738176634454,-500.0,0.00016438,2]
[350891930,1738176634464,-500.0,0.00016438,2]
[350891931,1738176634473,-500.0,0.00016438,2]
[350891932,1738176634482,-500.0,0.00016438,2]
[350891933,1738176634492,-4947.95,0.00016438,2]
[350891934,1738176634501,-500.0,0.00016438,2]
[350891935,1738176634511,-500.0,0.00016438,2]
[350891936,1738176634520,-500.0,0.00016438,2]
[350891937,1738176634529,-500.0,0.00016438,2]
[350891938,1738176634539,-500.0,0.00016438,2]
[350891939,1738176634549,-531.73072082,0.00016438,2]
[350891940,1738176634559,-945.76,0.00016438,2]
[350891941,1738176634569,-500.0,0.00016438,2]
[350891942,1738176634578,-500.0,0.00016438,2]
[350891943,1738176634588,-500.0,0.00016438,2]
[350891944,1738176634597,-500.0,0.00016438,2]
[350891945,1738176634607,-500.0,0.00016438,2]
[350891946,1738176634616,-500.0,0.00016438,2]
[350891947,1738176634626,-500.0,0.00016438,2]
[350891948,1738176634635,-2116.78,0.00016438,2]
[350891949,1738176634645,-500.0,0.00016438,2]
[350891950,1738176634655,-500.0,0.00016438,2]
[350891951,1738176634664,-500.0,0.00016438,2]
[350891952,1738176634674,-500.0,0.00016438,2]
[350891953,1738176634683,-151.0,0.00016438,2]
[350891954,1738176634692,-2170.1,0.00016438,2]
[350891955,1738176634702,-500.0,0.00016438,2]
[350891956,1738176634711,-5163.34,0.00016438,2]
[350891957,1738176634720,-500.0,0.00016438,2]
[350891958,1738176634729,-151.0,0.00016438,2]
[350891959,1738176634739,-500.0,0.00016438,2]
[350891960,1738176634748,-1058.66,0.00016438,2]
[350891961,1738176634757,-508.5352085,0.00016438,2]
[350891962,1738176634767,-500.0,0.00016438,2]
[350891963,1738176634776,-500.0,0.00016438,2]
[350891964,1738176634787,-500.0,0.00016438,2]
[350891965,1738176634796,-500.0,0.00016438,2]
[350891966,1738176634805,-500.0,0.00016438,2]
[350891967,1738176634814,-500.0,0.00016438,2]
[350891968,1738176634824,-789.36,0.00016438,2]
[350891969,1738176634833,-730.52,0.00016438,2]
[350891970,1738176634842,-500.0,0.00016438,2]
[350891971,1738176634852,-500.0,0.00016438,2]
[350891972,1738176634861,-2014.27,0.00016438,2]
[350891973,1738176634870,-500.0,0.00016438,2]
[350891974,1738176634880,-151.0,0.00016438,2]
[350891975,1738176634891,-500.0,0.00016438,2]
[350891976,1738176634902,-500.0,0.00016438,2]
[350891977,1738176634911,-500.0,0.00016438,2]
[350891978,1738176634921,-501.26397764,0.00016438,2]
[350891979,1738176634931,-500.0,0.00016438,2]
[350891980,1738176634940,-500.0,0.00016438,2]
[350891981,1738176634952,-500.0,0.00016438,2]
[350891982,1738176634962,-1849.46,0.00016438,2]
[350891983,1738176634972,-500.0,0.00016438,2]
[350891984,1738176634982,-500.0,0.00016438,2]
[350891985,1738176634992,-500.0,0.00016438,2]
[350891986,1738176635002,-500.0,0.00016438,2]
[350891987,1738176635011,-500.0,0.00016438,2]
[350891988,1738176635021,-541.91808656,0.00016438,2]
[350891989,1738176635030,-690.7,0.00016438,2]
[350891990,1738176635044,-574.9,0.00016438,2]
[350891991,1738176635054,-170.39137703,0.00016438,2]
[350891992,1738176635064,-257.33635515,0.00016438,2]
[350891993,1738176635074,-593.11,0.00016438,2]
[350891994,1738176635083,-1952.34,0.00016438,2]
[350891995,1738176635092,-500.0,0.00016438,2]
[350891996,1738176635101,-501.33398381,0.00016438,2]
[350891997,1738176635111,-500.0,0.00016438,2]
[350891998,1738176635120,-268.88091606,0.00016438,2]
[350891999,1738176635129,-500.0,0.00016438,2]
[350892000,1738176635139,-500.0,0.00016438,2]
[350892001,1738176635148,-501.08777645,0.00016438,2]
[350892002,1738176635158,-8806.43,0.00016438,2]
[350892003,1738176635167,-2968.48,0.00016438,2]
[350892004,1738176635177,-500.0,0.00016438,2]
[350892005,1738176635186,-500.0,0.00016438,2]
[350892006,1738176635196,-575.58,0.00016438,2]
[350892007,1738176635205,-500.0,0.00016438,2]
[350892008,1738176635215,-500.0,0.00016438,2]
[350892009,1738176635224,-160.1501,0.00016438,2]
[350892010,1738176635233,-541.62,0.00016438,2]